fUSD/lending_fUSD_20240303
["ID","MTS","AMOUNT","RATE_DAILY","PERIOD"]
[316490776,1709509839418,-500.0,0.00021108,2]
[316490777,1709509839427,-500.0,0.00021108,2]
[316490778,1709509839436,-386.16021254,0.00021108,2]
[316490779,1709509839446,-500.0,0.00021108,2]
[316490780,1709509839456,-500.0,0.00021108,2]
[316490781,1709509839465,-500.0,0.00021108,2]
[316490782,1709509839475,-500.0,0.00021108,2]
[316490783,1709509839485,-500.0,0.00021108,2]
[316490784,1709509839495,-588.71,0.00021108,2]
[316490785,1709509839504,-500.0,0.00021108,2]
[316490786,1709509839514,-500.0,0.00021108,2]
[316490787,1709509839523,-500.0,0.00021108,2]
[316490788,1709509839533,-500.0,0.00021108,2]
[316490789,1709509839542,-500.0,0.00021108,2]
[316490790,1709509839551,-563.06,0.00021108,2]
[316490791,1709509839562,-500.0,0.00021108,2]
[316490792,1709509839572,-500.0,0.00021108,2]
[316490793,1709509839581,-500.0,0.00021108,2]
[316490794,1709509839591,-500.0,0.00021108,2]
[316490795,1709509839601,-500.0,0.00021108,2]
[316490796,1709509839610,-500.0,0.00021108,2]
[316490797,1709509839620,-500.0,0.00021108,2]
[316490798,1709509839630,-500.0,0.00021108,2]
[316490799,1709509839639,-560.71,0.00021108,2]
[316490800,1709509839649,-2615.30364768,0.00021109,2]
[316490801,1709509839659,-1323.7246333,0.00021109,2]
[316490802,1709509839668,-32828.63022723,0.00021109,2]
[316490803,1709509839678,-2473.81584334,0.00021109,2]
[316490804,1709509839687,-2770.42473657,0.00021109,2]
[316490805,1709509839697,-1969.94062429,0.00021109,2]
[316490806,1709509839707,-885.37,0.00021134,2]
[316490807,1709509839716,-500.0,0.00021134,2]
[316490808,1709509839726,-500.0,0.00021134,2]
[316490809,1709509839735,-500.0,0.00021134,2]
[316490810,1709509839745,-276.07,0.00021134,2]
[316490811,1709509839754,-500.0,0.00021134,2]
[316490812,1709509839764,-553.3,0.00021134,2]
[316490813,1709509839773,-500.0,0.00021134,2]
[316490814,1709509839783,-739.21,0.00021134,2]
[316490815,1709509839796,-1144.51,0.00021134,2]
[316490816,1709509839805,-500.0,0.00021134,2]
[316490817,1709509839814,-500.0,0.00021134,2]
[316490818,1709509839823,-500.0,0.00021134,2]
[316490819,1709509839834,-500.0,0.00021134,2]
[316490820,1709509839843,-354.52,0.00021134,2]
[316490821,1709509839852,-550.93368386,0.00021134,2]
[316490822,1709509839862,-500.0,0.00021134,2]
[316490823,1709509839871,-500.0,0.00021134,2]
[316490824,1709509839880,-393.94,0.00021134,2]
[316490825,1709509839890,-482.44448354,0.00021134,2]
[316490826,1709509839899,-500.0,0.00021136,2]
[316490827,1709509839908,-881.91730369,0.0002118,2]
[316490828,1709509839917,-543.13189653,0.00021185,2]
[316490829,1709509839927,-301.55,0.00021185,2]
[316490830,1709509839936,-161.3,0.00021185,2]
[316490831,1709509839945,-500.0,0.00021185,2]
[316490832,1709509839955,-500.0,0.00021185,2]
[316490833,1709509839964,-504.81,0.00021185,2]
[316490834,1709509839973,-500.0,0.00021185,2]
[316490835,1709509839982,-500.0,0.00021185,2]
[316490836,1709509839991,-438.0,0.00021185,2]
[316490837,1709509840001,-500.0,0.00021185,2]
[316490838,1709509840011,-500.0,0.00021185,2]
[316490839,1709509840021,-500.0,0.00021185,2]
[316490840,1709509840031,-500.0,0.00021185,2]
[316490841,1709509840041,-500.0,0.00021185,2]
[316490842,1709509840051,-470.7,0.00021185,2]
[316490843,1709509840061,-1060.54,0.00021185,2]
[316490844,1709509840070,-524.15,0.00021185,2]
[316490845,1709509840080,-1059.47,0.00021185,2]
[316490846,1709509840089,-212.46,0.00021218,2]
[316490847,1709509840098,-632.54,0.00021218,2]
[316490848,1709509840108,-500.0,0.00021218,2]
[316490849,1709509840120,-417.94,0.00021218,2]
[316490850,1709509840129,-256.27,0.00021218,2]
[316490851,1709509840139,-424.69,0.00021218,2]
[316490852,1709509840148,-500.0,0.00021218,2]
[316490853,1709509840157,-293.05,0.00021218,2]
[316490854,1709509840166,-482.05,0.00021218,2]
[316490855,1709509840175,-485.62,0.00021218,2]
[316490856,1709509840185,-280.66,0.00021218,2]
[316490857,1709509840195,-500.0,0.00021218,2]
[316490858,1709509840204,-320.0,0.00021218,2]
[316490859,1709509840214,-641.69,0.00021218,2]
[316490860,1709509840223,-392.39,0.00021218,2]
[316490861,1709509840232,-290.67,0.00021218,2]
[316490862,1709509840241,-243.99222683,0.00021218,2]
[316490863,1709509840250,-500.0,0.00021218,2]
[316490864,1709509840259,-263.65,0.00021218,2]
[316490865,1709509840267,-498.39,0.00021218,2]
[316490866,1709509840277,-200.88,0.00021218,2]
[316490867,1709509840287,-500.0,0.00021218,2]
[316490868,1709509840296,-500.0,0.00021218,2]
[316490869,1709509840305,-461.08,0.00021218,2]
[316490870,1709509840314,-172.59,0.00021218,2]
[316490871,1709509840323,-574.04,0.00021218,2]
[316490872,1709509840332,-342.26,0.00021218,2]
[316490873,1709509840342,-500.0,0.00021218,2]
[316490874,1709509840351,-387.51,0.00021218,2]
[316490875,1709509840360,-500.0,0.00021218,2]
[316490876,1709509840369,-500.0,0.00021218,2]
[316490877,1709509840379,-425.50806583,0.00021218,2]
[316490878,1709509840388,-500.0,0.00021218,2]
[316490879,1709509840397,-500.0,0.00021218,2]
[316490880,1709509840407,-500.0,0.00021218,2]
[316490881,1709509840416,-214.83,0.00021218,2]
[316490882,1709509840425,-169.17,0.00021218,2]
[316490883,1709509840434,-155.56,0.00021218,2]
[316490884,1709509840444,-169.05,0.00021218,2]
[316490885,1709509840453,-280.31,0.00021218,2]
[316490886,1709509840462,-266.78,0.00021218,2]
[316490887,1709509840471,-500.0,0.00021218,2]
[316490888,1709509840480,-569.0,0.00021218,2]
[316490889,1709509840490,-500.0,0.00021218,2]
[316490890,1709509840499,-500.0,0.00021218,2]
[316490891,1709509840509,-289.98,0.00021218,2]
[316490892,1709509840518,-505.83,0.00021218,2]
[316490893,1709509840527,-547.57,0.00021218,2]
[316490894,1709509840539,-275.73,0.00021218,2]
[316490895,1709509840548,-500.0,0.00021218,2]
[316490896,1709509840558,-578.74,0.00021218,2]
[316490897,1709509840567,-500.0,0.00021218,2]
[316490898,1709509840576,-500.0,0.00021218,2]
[316490899,1709509840585,-445.53,0.00021218,2]
[316490900,1709509840595,-297.8,0.00021218,2]
[316490901,1709509840604,-500.0,0.00021218,2]
[316490902,1709509840613,-178.99,0.00021218,2]
[316490903,1709509840623,-553.52,0.00021218,2]
[316490904,1709509840634,-230.48,0.00021218,2]
[316490905,1709509840643,-317.88,0.00021218,2]
[316490906,1709509840653,-2000.0,0.00021226,2]
[316490907,1709509840662,-200.0,0.00021226,2]
[316490908,1709509840671,-885.37,0.00021244,2]
[316490909,1709509840680,-500.0,0.00021244,2]
[316490910,1709509840690,-240.34,0.00021244,2]
[316490911,1709509840699,-640.18,0.00021244,2]
[316490912,1709509840708,-500.0,0.00021244,2]
[316490913,1709509840717,-195.45,0.00021244,2]
[316490914,1709509840726,-739.21,0.00021244,2]
[316490915,1709509840736,-1144.51,0.00021244,2]
[316490916,1709509840745,-500.0,0.00021244,2]
[316490917,1709509840754,-552.03,0.00021244,2]
[316490918,1709509840763,-500.0,0.00021244,2]
[316490919,1709509840774,-494.84,0.00021244,2]
[316490920,1709509840785,-577.33,0.00021244,2]
[316490921,1709509840794,-435.79,0.00021244,2]
[316490922,1709509840803,-500.0,0.00021246,2]
[316490923,1709509840812,-150.76,0.00021251,2]
[316490924,1709509840821,-500.11,0.00021295,2]
[316490925,1709509840831,-500.0,0.00021295,2]
[316490926,1709509840841,-220.47,0.00021295,2]
[316490927,1709509840851,-500.0,0.00021295,2]
[316490928,1709509840860,-164.98615882,0.00021295,2]
[316490929,1709509840870,-377.48,0.00021295,2]
[316490930,1709509840879,-500.0,0.00021295,2]
[316490931,1709509840889,-500.0,0.00021295,2]
[316490933,1709509840898,-1060.54,0.00021295,2]
[316490935,1709509840907,-1059.47,0.00021295,2]
[316490936,1709509840916,-500.0,0.00021327,2]
[316490937,1709509840926,-247.63,0.00021327,2]
[316490938,1709509840935,-216.44,0.00021327,2]
[316490939,1709509840944,-150.10551327,0.00021327,2]
[316490940,1709509840953,-500.0,0.00021327,2]
[316490941,1709509840962,-500.0,0.00021327,2]
[316490942,1709509840971,-410.81599538,0.00021327,2]
[316490943,1709509840981,-500.0,0.00021327,2]
[316490944,1709509840990,-329.35,0.00021327,2]
[316490945,1709509840999,-499.61,0.00021327,2]
[316490946,1709509841008,-301.42,0.00021327,2]
[316490947,1709509841018,-299.88,0.00021327,2]
[316490948,1709509841026,-326.27,0.00021327,2]
[316490949,1709509841037,-452.12,0.00021327,2]
[316490950,1709509841046,-261.52344748,0.00021327,2]
[316490951,1709509841055,-179.44,0.0002134,2]
[316490952,1709509841064,-885.37,0.00021353,2]
[316490953,1709509841073,-500.0,0.00021353,2]
[316490954,1709509841082,-571.87,0.00021353,2]
[316490955,1709509841091,-739.21,0.00021353,2]
[316490956,1709509841101,-1144.51,0.00021353,2]
[316490957,1709509841111,-500.0,0.00021353,2]
[316490958,1709509841124,-500.0,0.00021353,2]
[316490959,1709509841134,-592.14,0.00021355,2]
[316490960,1709509841143,-1268.34,0.0002137,2]
[316490961,1709509841153,-12326.87,0.00021393,2]
[316490962,1709509841163,-500.0,0.00021404,2]
[316490963,1709509841173,-542.18,0.00021404,2]
[316490964,1709509841182,-500.0,0.00021404,2]
[316490965,1709509841193,-500.0,0.00021404,2]
[316490966,1709509841203,-1060.54,0.00021404,2]
[316490967,1709509841213,-1059.47,0.00021404,2]
[316490968,1709509841223,-150.76,0.00021425,2]
[316490969,1709509841232,-500.0,0.00021437,2]
[316490970,1709509841241,-584.36,0.00021437,2]
[316490971,1709509841250,-180.93,0.00021437,2]
[316490972,1709509841260,-500.0,0.00021437,2]
[316490973,1709509841270,-2000.0,0.00021438,2]
[316490974,1709509841281,-200.0,0.00021438,2]
[316490975,1709509841290,-213.05680928,0.00021447,6]
[316490976,1709509841300,-220.88314732,0.00021454,2]
[316490977,1709509841309,-315.37116715,0.00021454,2]
[316490978,1709509841319,-35690.11094094,0.00021454,2]
[316490979,1709509841328,-5290.29157907,0.00021455,2]
[316490980,1709509841337,-1000.0,0.00021457,2]
[316490981,1709509841347,-213.05680928,0.0002146,6]
[316490982,1709509841356,-635.65690254,0.0002146,2]
[316490983,1709509841365,-885.37,0.00021463,2]
[316490984,1709509841375,-500.0,0.00021463,2]
[316490985,1709509841384,-739.21,0.00021463,2]
[316490986,1709509841393,-1144.51,0.00021463,2]
[316490987,1709509841403,-500.0,0.00021463,2]
[316490988,1709509841412,-500.0,0.00021463,2]
[316490989,1709509841422,-743.5551213,0.00021464,6]
[316490990,1709509841431,-213.05680928,0.00021474,6]
[316490991,1709509841441,-165.37,0.00021475,2]
[316490992,1709509841450,-175.61,0.00021475,2]
[316490993,1709509841460,-170.88,0.00021475,2]
[316490994,1709509841469,-213.05680928,0.00021476,6]
[316490995,1709509841479,-743.5551213,0.00021486,6]
[316490996,1709509841489,-743.5551213,0.00021491,6]
[316490997,1709509841498,-743.5551213,0.00021495,6]
[316490998,1709509841508,-500.0,0.00021514,2]
[316490999,1709509841518,-491.2105,0.00021514,2]
[316491000,1709509841528,-500.0,0.00021514,2]
[316491001,1709509841541,-1060.54,0.00021514,2]
[316491002,1709509841551,-1059.47,0.00021514,2]
[316491003,1709509841560,-500.0,0.00021547,2]
[316491004,1709509841570,-500.0,0.00021547,2]
[316491005,1709509841579,-885.37,0.00021573,2]
[316491006,1709509841589,-406.69,0.00021573,2]
[316491007,1709509841599,-739.21,0.00021573,2]
[316491008,1709509841608,-1144.51,0.00021573,2]
[316491009,1709509841617,-500.0,0.00021573,2]
[316491010,1709509841627,-500.0,0.00021573,2]
[316491011,1709509841636,-150.76,0.00021599,2]
[316491012,1709509841647,-150.0,0.000216,2]
[316491013,1709509841657,-166.82316908,0.00021617,2]
[316491014,1709509841666,-481.87,0.00021624,2]
[316491015,1709509841676,-542.98,0.00021624,2]
[316491016,1709509841686,-1060.54,0.00021624,2]
[316491017,1709509841696,-1059.47,0.00021624,2]
[316491018,1709509841706,-177.22725258,0.00021646,2]
[316491019,1709509841716,-2000.0,0.00021653,2]
[316491020,1709509841726,-500.0,0.00021656,2]
[316491021,1709509841874,-500.0,0.00021656,2]
[316491022,1709509841885,-172.568889,0.0002166,2]
[316491023,1709509841894,-163.456991,0.0002166,2]
[316491024,1709509841904,-152.669311,0.0002166,2]
[316491025,1709509841913,-885.37,0.00021682,2]
[316491026,1709509841922,-739.21,0.00021682,2]
[316491027,1709509841931,-1144.51,0.00021682,2]
[316491028,1709509841941,-500.0,0.00021682,2]
[316491029,1709509841950,-500.0,0.00021682,2]
[316491030,1709509841960,-2422.9064741,0.00021695,2]
[316491031,1709509841971,-3524.0,0.000217,2]
[316491032,1709509841980,-1442.0,0.000217,2]
[316491033,1709509841989,-3827.55418969,0.00021732,2]
[316491034,1709509841999,-1060.54,0.00021733,2]
[316491035,1709509842008,-1059.47,0.00021733,2]
[316491036,1709509842018,-500.0,0.00021766,2]
[316491037,1709509842027,-213.16,0.00021766,2]
[316491038,1709509842039,-150.76,0.00021773,2]
[316491039,1709509842049,-204.0,0.00021777,5]
[316491040,1709509842059,-885.37,0.00021792,2]
[316491041,1709509842068,-739.21,0.00021792,2]
[316491042,1709509842078,-1144.51,0.00021792,2]
[316491043,1709509842087,-500.0,0.00021792,2]
[316491044,1709509842096,-500.0,0.00021792,2]
[316491045,1709509842105,-1060.54,0.00021843,2]
[316491046,1709509842115,-1059.47,0.00021843,2]
[316491047,1709509842126,-500.0,0.00021875,2]
[316491048,1709509842135,-5698.62809574,0.00021896,5]
[316491049,1709509842145,-250.0,0.000219,2]
[316491050,1709509842154,-7748.3087541,0.000219,2]
[316491051,1709509842163,-8000.0,0.000219,2]
[316491052,1709509842172,-885.37,0.00021901,2]
[316491053,1709509842182,-739.21,0.00021901,2]
[316491054,1709509842192,-1144.51,0.00021901,2]
[316491055,1709509842201,-500.0,0.00021901,2]
[316491056,1709509842211,-500.0,0.00021901,2]
[316491057,1709509842220,-500.0,0.00021917,2]
[316491058,1709509842229,-250.0,0.00021918,2]
[316491059,1709509842238,-150.0,0.00021918,2]
[316491060,1709509842248,-200.0,0.00021918,2]
[316491061,1709509842257,-155.0,0.00021918,2]
[316491062,1709509842267,-504.107,0.00021947,2]
[316491063,1709509842277,-150.0,0.00021947,2]
[316491064,1709509842290,-150.76,0.00021948,2]
[316491065,1709509842299,-1060.54,0.00021952,2]
[316491066,1709509842309,-1059.47,0.00021952,2]
[316491068,1709509842318,-346.76,0.00021985,2]
[316491069,1709509842327,-215243.16065983,0.00022,10]
[316491070,1709509842336,-412.8792886,0.00022,2]
[316491071,1709509842346,-997.0,0.00022,4]
[316491072,1709509842355,-6000.0,0.00022,2]
[316491073,1709509842365,-362.76736413,0.00022,2]
[316491076,1709509842374,-645.0,0.00022,2]
[316491078,1709509842383,-6483.04,0.00022,2]
[316491080,1709509842393,-2500.0,0.00022,2]
[316491083,1709509842402,-21183.36870514,0.0002201,2]
[316491086,1709509842412,-885.37,0.00022011,2]
[316491088,1709509842421,-739.21,0.00022011,2]
[316491091,1709509842431,-1144.51,0.00022011,2]
[316491095,1709509842440,-500.0,0.00022011,2]
[316491098,1709509842449,-500.0,0.00022011,2]
[316491103,1709509842459,-151.05,0.00022011,2]
[316491108,1709509842469,-1060.54,0.00022062,2]
[316491112,1709509842479,-1059.47,0.00022062,2]
[316491115,1709509842489,-885.37,0.00022121,2]
[316491119,1709509842499,-739.21,0.00022121,2]
[316491121,1709509842508,-1144.51,0.00022121,2]
[316491123,1709509842517,-500.0,0.00022121,2]
[316491125,1709509842526,-500.0,0.00022121,2]
[316491127,1709509842537,-150.76,0.00022122,2]
[316491129,1709509842547,-1295.96,0.00022167,3]
[316491130,1709509842556,-647.98,0.00022167,3]
[316491132,1709509842566,-324.0,0.00022167,3]
[316491134,1709509842575,-1060.54,0.00022172,2]
[316491136,1709509842585,-1059.47,0.00022172,2]
[316491137,1709509842594,-2000.0,0.000222,2]
[316491139,1709509842605,-885.37,0.0002223,2]
[316491141,1709509842615,-739.21,0.0002223,2]
[316491143,1709509842624,-1144.51,0.0002223,2]
[316491145,1709509842633,-500.0,0.0002223,2]
[316491147,1709509842643,-500.0,0.0002223,2]
[316491149,1709509842652,-166.82316908,0.00022259,2]
[316491151,1709509842662,-1060.54,0.00022281,2]
[316491152,1709509842672,-1059.47,0.00022281,2]
[316491154,1709509842682,-150.76,0.00022296,2]
[316491156,1709509842691,-885.37,0.0002234,2]
[316491158,1709509842701,-739.21,0.0002234,2]
[316491159,1709509842710,-1144.51,0.0002234,2]
[316491160,1709509842720,-500.0,0.0002234,2]
[316491161,1709509842730,-500.0,0.0002234,2]
[316491162,1709509842739,-1060.54,0.00022391,2]
[316491163,1709509842749,-1059.47,0.00022391,2]
[316491165,1709509842758,-885.37,0.00022449,2]
[316491166,1709509842767,-739.21,0.00022449,2]
[316491168,1709509842777,-1144.51,0.00022449,2]
[316491170,1709509842788,-500.0,0.00022449,2]
[316491172,1709509842797,-500.0,0.00022449,2]
[316491174,1709509842806,-150.76,0.0002247,2]
[316491176,1709509842816,-150.0,0.00022495,2]
[316491179,1709509842826,-1500.0,0.000225,2]
[316491181,1709509842835,-1060.54,0.000225,2]
[316491183,1709509842845,-1059.47,0.000225,2]
[316491184,1709509842854,-1000.0,0.00022535,2]
[316491186,1709509842863,-885.37,0.00022559,2]
[316491188,1709509842873,-739.21,0.00022559,2]
[316491190,1709509842882,-1144.51,0.00022559,2]
[316491193,1709509842892,-500.0,0.00022559,2]
[316491195,1709509842903,-500.0,0.00022559,2]
[316491197,1709509842913,-166.75,0.0002258,2]
[316491198,1709509842923,-1160.21501692,0.000226,2]
[316491201,1709509842942,-1008.0,0.000226,2]
[316491203,1709509842951,-180.0,0.00022603,2]
[316491205,1709509842961,-1060.54,0.0002261,2]
[316491207,1709509842971,-1059.47,0.0002261,2]
[316491209,1709509842983,-150.76,0.00022644,2]
[316491210,1709509842993,-885.37,0.00022669,2]
[316491212,1709509843003,-739.21,0.00022669,2]
[316491214,1709509843012,-1144.51,0.00022669,2]
[316491217,1709509843023,-500.0,0.00022669,2]
[316491219,1709509843034,-500.0,0.00022669,2]
[316491221,1709509843043,-1160.21501689,0.00022675,2]
[316491222,1709509843053,-150.0,0.00022695,30]
[316491223,1709509843062,-1000.0,0.00022695,30]
[316491224,1709509843071,-318.0,0.00022695,30]
[316491225,1709509843081,-5000.0,0.00022695,120]
[316491226,1709509843090,-148275.20364035,0.000227,2]
[316491227,1709509843100,-2000.0,0.000227,7]
[316491228,1709509843110,-1060.54,0.0002272,2]
[316491229,1709509843123,-1059.47,0.0002272,2]
[316491230,1709509843132,-150.0,0.0002273,2]
[316491231,1709509843141,-150.0,0.00022736,2]
[316491232,1709509843151,-1160.21501689,0.0002275,2]
[316491233,1709509843160,-150.0,0.00022758,2]
[316491234,1709509843169,-271.0,0.0002276,2]
[316491235,1709509843178,-150.0,0.00022765,2]
[316491236,1709509843188,-150.0,0.00022766,2]
[316491237,1709509843199,-150.0,0.00022773,2]
[316491238,1709509843210,-150.0,0.00022774,2]
[316491239,1709509843219,-150.0,0.00022777,2]
[316491240,1709509843229,-885.37,0.00022778,2]
[316491241,1709509843239,-739.21,0.00022778,2]
[316491242,1709509843248,-1144.51,0.00022778,2]
[316491243,1709509843258,-500.0,0.00022778,2]
[316491244,1709509843267,-500.0,0.00022778,2]
[316491245,1709509843277,-150.0,0.00022779,2]
[316491246,1709509843286,-150.0,0.00022784,2]
[316491247,1709509843296,-150.0,0.00022793,2]
[316491248,1709509843305,-150.0,0.00022794,2]
[316491249,1709509843314,-15413.47898903,0.000228,2]
[316491250,1709509843323,-2000.0,0.000228,2]
[316491251,1709509843332,-5826.97073391,0.000228,4]
[316491252,1709509843554,-1016.33823026,0.000228,4]
[316491253,1709509843565,-414.96820624,0.000228,4]
[316491254,1709509843581,-3487.86179996,0.000228,4]
[316491255,1709509843594,-2908.98261181,0.000228,4]
[316491256,1709509843605,-1759.23605298,0.000228,4]
[316491257,1709509843616,-824.0,0.000228,4]
[316491258,1709509843634,-500.0,0.00020915,2]
[316491259,1709509843644,-3761.64236484,0.000228,4]
[316491260,1709509843653,-150.0,0.00022811,2]
[316491261,1709509843663,-800.0,0.00022815,2]
[316491262,1709509843672,-200.0,0.00022815,2]
[316491263,1709509843681,-200.0,0.00022816,2]
[316491264,1709509843690,-150.0,0.00022816,2]
[316491265,1709509843699,-200.0,0.00022816,2]
[316491266,1709509843709,-800.0,0.00022816,2]
[316491267,1709509843718,-200.0,0.00022816,2]
[316491268,1709509843727,-200.0,0.00022816,2]
[316491269,1709509843735,-500.0,0.00022816,2]
[316491270,1709509843745,-200.0,0.00022816,2]
[316491271,1709509843754,-150.76,0.00022818,2]
[316491272,1709509843763,-150.0,0.00022819,2]
[316491273,1709509843772,-300.0,0.00022823,2]
[316491274,1709509843781,-1160.21501689,0.00022825,2]
[316491275,1709509843791,-1060.54,0.00022829,2]
[316491276,1709509843800,-1059.47,0.00022829,2]
[316491277,1709509843809,-150.0,0.00022842,2]
[316491278,1709509843818,-150.0,0.00022855,2]
[316491279,1709509843827,-150.0,0.00022863,2]
[316491280,1709509843836,-150.0,0.00022864,2]
[316491281,1709509843844,-150.0,0.00022866,2]
[316491282,1709509843854,-150.0,0.00022878,2]
[316491283,1709509843862,-150.0,0.00022883,2]
[316491284,1709509843871,-150.0,0.00022886,2]
[316491285,1709509843880,-885.37,0.00022888,2]
[316491286,1709509843889,-739.21,0.00022888,2]
[316491287,1709509843898,-1144.51,0.00022888,2]
[316491288,1709509843907,-500.0,0.00022888,2]
[316491289,1709509843916,-150.0,0.00022891,2]
[316491290,1709509843926,-1176.07820182,0.00022893,2]
[316491291,1709509843935,-150.0,0.00022893,2]
[316491292,1709509843944,-1176.0782018,0.00022894,2]
[316491293,1709509843953,-1176.0782018,0.00022894,2]
[316491294,1709509843963,-1176.0782018,0.00022895,2]
[316491295,1709509843972,-1176.0782018,0.00022896,2]
[316491296,1709509843982,-1176.0782018,0.00022896,2]
[316491297,1709509843991,-1071.84451333,0.00022897,2]
[316491298,1709509844125,-500.0,0.00020915,2]
[316491299,1709509844135,-80.4,0.00021025,2]
[316491300,1709509844186,-500.09,0.00021025,2]
[316491301,1709509844198,-104.23368847,0.00022897,2]
[316491302,1709509844207,-186.75643765,0.00022897,2]
[316491303,1709509844216,-1176.0782018,0.00022897,2]
[316491304,1709509844225,-431.85986877,0.00022898,2]
[316491305,1709509844234,-1000.0,0.00022898,2]
[316491306,1709509844243,-363.80633777,0.00022898,2]
[316491307,1709509844252,-221.39612314,0.00022898,2]
[316491308,1709509844261,-1176.0782018,0.00022898,2]
[316491309,1709509844270,-1133.8804706,0.00022899,2]
[316491310,1709509844281,-42.1977312,0.00022899,2]
[316491311,1709509844293,-567.89526293,0.00022899,2]
[316491312,1709509844304,-608.18293887,0.00022899,2]
[316491313,1709509844313,-975.26215823,0.000229,4]
[316491314,1709509844325,-391.45736558,0.000229,4]
[316491315,1709509844336,-1755.07412945,0.000229,4]
[316491316,1709509844348,-556.24799386,0.000229,4]
[316491317,1709509844457,-211.96631915,0.00020915,2]
[316491318,1709509844467,-211.96631915,0.00020915,2]
[316491319,1709509844477,-2287.97830628,0.000229,4]
[316491320,1709509844489,-356.6622287,0.000229,4]
[316491321,1709509844515,-124075.17380643,0.000229,4]
[316491322,1709509844527,-1978.1846,0.000229,4]
[316491323,1709509844540,-1229.25561443,0.000229,4]
[316491324,1709509844577,-1258.9005111,0.000229,4]
[316491325,1709509844589,-2131.15473793,0.000229,4]
[316491326,1709509844600,-15711.44766,0.000229,4]
[316491327,1709509844616,-600.55760099,0.000229,4]
[316491328,1709509844627,-1257.985,0.000229,4]
[316491329,1709509844638,-545.74999965,0.000229,4]
[316491330,1709509844649,-7835.53710761,0.000229,4]
[316491331,1709509845527,-431.85986877,0.00021474,2]
[316491332,1709509845538,-568.32540845,0.00021572,2]
[316491333,1709509845580,-431.67459155,0.00021572,2]
[316491334,1709509845589,-1525.86691197,0.000229,4]
[316491335,1709509845693,-6999.65018,0.000229,4]
[316491336,1709509845705,-6284.5,0.000229,4]
[316491337,1709509845716,-3801.24051439,0.000229,4]
[316491338,1709509845728,-300.0,0.000229,4]
[316491339,1709509845921,-2011.54978919,0.000229,4]
[316491347,1709509864022,203.00002,0.00019047,2]
[316491350,1709509952603,5331.23998,0.0002,2]
[316491351,1709509952626,2534.24,0.0002,2]
[316491352,1709509952653,2134.52002,0.0002,2]
[316491353,1709509971781,300.0,0.00019908,2]
[316491354,1709509982790,9010.0,0.0002,2]
[316491355,1709510045734,2000.0,0.0002,2]
[316491356,1709510052829,499.999999,0.0002,2]
[316491358,1709510137041,2000.0,0.0002,2]
[316491365,1709510263900,1852.42,0.000197,2]
[316491368,1709510280563,228.98,0.00019723,2]
[316491370,1709510294199,179.18,0.00019723,2]
[316491371,1709510300385,2779.64,0.00019708,2]
[316491375,1709510306794,1000.0,0.00019708,2]
[316491377,1709510330830,223.38,0.00019723,2]
[316491379,1709510350446,23890.0,0.00019715,2]
[316491380,1709510355238,428.83,0.00019724,2]
[316491382,1709510363348,500.0,0.00019695,2]